Cogmind - Beta 11 @@@ ROGUE MODE // 2022.04.15 @ 16:07:02 Player: JuliaScythe Result: Destroyed by H-71 Marshal with Heavy Mass Driver Performance ------------- Evolutions (6) 3000 Regions Visited (19) 3800 Robots Destroyed (52) 260 Value Destroyed (1692) 1692 Prototype IDs (11) 220 Alien Tech Used (0) 0 Bonus (3067) 3067 TOTAL SCORE: 12039 Bonus ------- High Alert Combat Kills 82 Follower Combat Kills 85 Entered Garrisons 400 Used RIF Installer 1000 Entered DSFs 500 Network Hubs Disabled 400 Met Zhirov 300 Read Decrypted Archives 300 Cogmind --------- Core Integrity 0/1150 Matter 286/300 Energy 98/100 System Corruption 1% Temperature Cool (0) Movement Core (50) Location -4/Factory Parts ------- > --- POWER (2) -------- (None) > --- PROPULSION (6) --- (None) > --- UTILITY (9) ------ Advanced Signal Interpreter > --- WEAPON (2) ------- (None) > --- INVENTORY (5) ---- Cold Fusion Reactor Improved System Shield Authchip [R/Combat] Backup Laser I Lance Peak State ------------ > --- POWER ------------ Cold Fusion Reactor > --- PROPULSION ------- Biomechanical Wings Field Propulsion Drive Field Propulsion Drive Field Propulsion Drive Field Propulsion Array > --- UTILITY ---------- Small Storage Unit Experimental Sensor Array Advanced Signal Interpreter Hacking Suite Hacking Suite Relay Coupler [NC] Relay Coupler [Grunt] Relay Coupler [Behemoth] > --- WEAPON ----------- Advanced Beam Cannon Improved Remote Datajack > --- INVENTORY -------- Nuclear Pulse Thruster Nuclear Pulse Thruster Biomechanical Wings Nuclear Pulse Array Improved Light Armor Plating Authchip [R/Combat] Backup Laser I [Rating: 87] Favorites ----------- Power Heavy Ion Engine Engine Heavy Ion Engine Power Core Micro Nuclear Core Reactor Cold Fusion Reactor Propulsion Aluminum Leg Treads Light Treads Leg Aluminum Leg Flight Unit Flight Unit Utility Small Storage Unit Device Experimental Sensor Array Storage Small Storage Unit Processor Targeting Computer Hackware Hacking Suite Protection Power Shielding Weapon Advanced Beam Cannon Energy Gun Backup Laser I Energy Cannon Advanced Beam Cannon Ballistic Gun Heavy Assault Rifle Special Weapon Remote Datajack Build | -11 -10 -10 -9 -9 -9 -9 -7 -7 -6 -6 -6 -5 -5 -5 -5 -5 -5 -5 -4 ------- Run | Scr Mat Min Mat Sto Gar Rec Fac DSF Fac Was Fac Fac Gar Fac Ext Cet Arc Hub Fac Slots Evolved 12 | . . . 2 . . . 4 . 2 . . 2 . . . . . . 2 Power 1 | . . . . . . . . . . . . . . . . . . . 1 Propulsion 4 | . . . 1 . . . 2 . 1 . . . . . . . . . . Utility 7 | . . . 1 . . . 2 . 1 . . 2 . . . . . . 1 Weapon . | . . . . . . . . . . . . . . . . . . . . Parts Attached 69 | . . 4 5 18 6 . 4 1 4 1 9 3 . 5 1 4 . 4 . Power 5 | . . . 1 1 . . 1 . 1 . 1 . . . . . . . . Engine 2 | . . . 1 1 . . . . . . . . . . . . . . . Core 2 | . . . . . . . 1 . 1 . . . . . . . . . . Reactor 1 | . . . . . . . . . . . 1 . . . . . . . . Propulsion 29 | . . . 2 5 3 . 2 . . 1 5 1 . 3 . 4 . 3 . Treads 3 | . . . 2 1 . . . . . . . . . . . . . . . Leg 4 | . . . . 4 . . . . . . . . . . . . . . . Wheel . | . . . . . . . . . . . . . . . . . . . . Hover . | . . . . . . . . . . . . . . . . . . . . Flight 22 | . . . . . 3 . 2 . . 1 5 1 . 3 . 4 . 3 . Utility 19 | . . 1 1 3 3 . 1 1 3 . 1 2 . 1 1 . . 1 . Device 5 | . . 1 . 1 . . 1 . 2 . . . . . . . . . . Storage 2 | . . . . . 2 . . . . . . . . . . . . . . Processor 3 | . . . 1 1 . . . . 1 . . . . . . . . . . Hackware 7 | . . . . . 1 . . 1 . . 1 2 . . 1 . . 1 . Protection 2 | . . . . 1 . . . . . . . . . 1 . . . . . Artifact . | . . . . . . . . . . . . . . . . . . . . Weapon 16 | . . 3 1 9 . . . . . . 2 . . 1 . . . . . Energy Gun 3 | . . 1 . 2 . . . . . . . . . . . . . . . Energy Cannon 6 | . . . . 5 . . . . . . 1 . . . . . . . . Ballistic Gun 5 | . . 2 1 2 . . . . . . . . . . . . . . . Ballistic Cannon . | . . . . . . . . . . . . . . . . . . . . Launcher . | . . . . . . . . . . . . . . . . . . . . Special Weapon 2 | . . . . . . . . . . . 1 . . 1 . . . . . Impact Weapon . | . . . . . . . . . . . . . . . . . . . . Slashing Weapon . | . . . . . . . . . . . . . . . . . . . . Piercing Weapon . | . . . . . . . . . . . . . . . . . . . . Special Melee Weapon . | . . . . . . . . . . . . . . . . . . . . Unidentified Prototypes 11 | . . 1 1 5 . . 1 . . . 3 . . . . . . . . Corrupted Parts 2 | . . . . . . . . . . . . . . . . . . 2 . System Corruption 20 | . . . . . . . . . . . . . . . . . . 20 . Parts Lost 35 | . . . 1 4 4 . . 3 . . . . 1 1 1 7 . 10 3 Power 2 | . . . . . 1 . . 1 . . . . . . . . . . . Propulsion 20 | . . . 1 3 2 . . 1 . . . . . 1 1 5 . 5 1 Utility 9 | . . . . . 1 . . . . . . . 1 . . . . 5 2 Weapon 4 | . . . . 1 . . . 1 . . . . . . . 2 . . . Highest Loss Streak 9 | . . . 1 2 2 . . 3 . . . . 1 1 1 7 . 9 3 To Critical Strikes . | . . . . . . . . . . . . . . . . . . . . Average Slot Usage (%) 85 | . 85 95 86 92 85 77 75 76 83 86 84 94 94 89 91 82 70 60 15 Engine 6 | . 14 14 11 10 9 . . . 1 . . . . . . . . . . Treads 3 | . . . 8 10 . . . . . . . . . . . . . . . Leg 13 | . 28 28 17 20 24 . . . . . . . . . . . . . . Flight 10 | . . . . . 3 33 35 34 26 26 30 29 29 26 26 22 17 14 3 Device 7 | . . 10 11 11 2 . 6 7 7 6 6 5 5 5 5 5 5 1 . Storage 9 | . 14 14 11 11 11 11 7 7 6 6 6 5 5 5 5 5 5 4 . Processor 5 | . . . 6 3 11 11 7 7 9 13 12 5 5 5 5 5 5 5 5 Hackware 7 | . . . . . 6 11 7 7 13 13 13 29 29 23 26 29 29 27 6 Energy Gun 2 | . 14 10 . . . . . . 12 13 5 . . . . . . . . Energy Cannon 5 | . . . . 12 11 11 7 5 . . . 5 5 5 5 3 . . . Ballistic Gun 7 | . 14 17 22 9 6 . . . . . . . . . . . . . . Naked Turns . | . . . . . . . . . . . . . . . . . . . . Heaviest Build 29 | 13 13 17 19 24 23 9 16 16 14 14 25 25 25 29 29 26 18 18 . Greatest Support 60 | 20 20 20 40 60 30 12 22 22 27 18 34 36 36 42 42 42 25 25 4 Greatest Overweight (x) 8 | . . . . 2 2 . . . . . . . 8 . . . . . . Average Overweight (x) . | . . . . . . . . . . . . . . . . . . . . Largest Inventory Capacity 20 | . 8 8 8 8 20 8 8 8 8 8 8 8 8 8 8 8 8 8 5 Average Capacity 7 | . 8 8 8 8 8 8 8 8 8 8 8 8 8 8 8 8 8 7 5 Most Carried 8 | . 7 8 8 8 8 8 8 8 8 8 8 8 8 8 8 8 3 5 5 Average Carried 7 | . 6 7 7 7 7 8 7 7 7 8 7 7 8 8 8 6 3 3 4 Final Capacity 8 | 8 8 8 8 8 8 8 8 8 8 8 8 8 8 8 8 8 8 5 5 Final Carried 8 | 6 7 8 7 8 8 8 7 8 8 8 7 8 8 8 8 3 3 5 5 Class Distribution -------------------- 59% | Mutant 18% | Hacker-Sprinter 6% | Bothacker-Sprinter 4% | Hacker-Mutant 4% | Scavenger-Mutant 3% | Scavenger-Sprinter Dominant Class ---------------- Mutant | -10/Materials Mutant | -10/Mines Mutant | -9/Materials Mutant | -9/Storage Mutant | -9/Garrison Scavenger-Mutant | -9/Recycling Scavenger-Sprinter | -7/Factory Sprinter | -7/DSF Hacker-Sprinter | -6/Factory Hacker-Sprinter | -6/Waste Hacker-Sprinter | -6/Factory Bothacker-Sprinter | -5/Factory Bothacker-Sprinter | -5/Garrison Hacker-Sprinter | -5/Factory Hacker-Mutant | -5/Extension Hacker-Sprinter | -5/Cetus Hacker-Mutant | -5/Archives Hacker-Mutant | -5/Hub_04(d) Sprinter | -4/Factory Resources | -11 -10 -10 -9 -9 -9 -9 -7 -7 -6 -6 -6 -5 -5 -5 -5 -5 -5 -5 -4 ----------- Run | Scr Mat Min Mat Sto Gar Rec Fac DSF Fac Was Fac Fac Gar Fac Ext Cet Arc Hub Fac Matter Collected 1297 | 200 . 61 161 432 96 . . . . . . . . 134 . 82 . 127 4 Remotely . | . . . . . . . . . . . . . . . . . . . . Salvage Created 1787 | . . 204 353 1072 158 . . . . . . . . . . . . . . Parts 125 | . . 8 32 71 14 . . . . . . . . . . . . . . Haulers Intercepted 6 | . . . 2 4 . . . . . . . . . . . . . . . Recyclers Shooed . | . . . . . . . . . . . . . . . . . . . . Parts Field Recycled . | . . . . . . . . . . . . . . . . . . . . Retrieved Matter . | . . . . . . . . . . . . . . . . . . . . Parts Self-Destructed . | . . . . . . . . . . . . . . . . . . . . Prevented . | . . . . . . . . . . . . . . . . . . . . Kills | -11 -10 -10 -9 -9 -9 -9 -7 -7 -6 -6 -6 -5 -5 -5 -5 -5 -5 -5 -4 ------- Run | Scr Mat Min Mat Sto Gar Rec Fac DSF Fac Was Fac Fac Gar Fac Ext Cet Arc Hub Fac Combat Hostiles Destroyed 42 | . . 4 8 21 9 . . . . . . . . . . . . . . Guns 21 | . . 4 8 8 1 . . . . . . . . . . . . . . Cannons 21 | . . . . 13 8 . . . . . . . . . . . . . . Classes Destroyed 8 | . . 2 3 3 . . . . . . . . . . . . . . . Worker 1 | . . . . 1 . . . . . . . . . . . . . . . Hauler 6 | . . . 2 4 . . . . . . . . . . . . . . . Recycler 1 | . . . . 1 . . . . . . . . . . . . . . . Operator 1 | . . . . 1 . . . . . . . . . . . . . . . Watcher 1 | . . . 1 . . . . . . . . . . . . . . . . Swarmer 17 | . . . 5 4 8 . . . . . . . . . . . . . . Grunt 13 | . . 2 . 11 . . . . . . . . . . . . . . . Sentry 12 | . . 2 3 6 1 . . . . . . . . . . . . . . Best Kill Streak 5 | . . 2 5 5 4 . . . . . . . . . . . . . . Combat Bots Only 5 | . . 2 5 4 4 . . . . . . . . . . . . . . Max Kills in Single Turn 2 | . . 1 2 1 1 . . . . . . . . . . . . . . Gunslinging 1 | . . . 1 . . . . . . . . . . . . . . . . Exploded . | . . . . . . . . . . . . . . . . . . . . Melee . | . . . . . . . . . . . . . . . . . . . . Uniques/NPCs Destroyed . | . . . . . . . . . . . . . . . . . . . . Combat | -11 -10 -10 -9 -9 -9 -9 -7 -7 -6 -6 -6 -5 -5 -5 -5 -5 -5 -5 -4 -------- Run | Scr Mat Min Mat Sto Gar Rec Fac DSF Fac Was Fac Fac Gar Fac Ext Cet Arc Hub Fac Damage Taken 5948 | . . 275 467 1054 412 . . 143 81 . 33 . 189 57 232 671 . 1013 1321 Core 2688 | . . 63 133 136 126 . . 46 6 . 16 . 36 . 33 180 . 712 1201 Absorbed by Shields 22 | . . . . . . . . . . . . . 22 . . . . . . Redirected to Shielding 20 | . . . . 20 . . . . . . . . . . . . . . . Regen/Repaired (Parts) 151 | . . . . . . . . . 26 . 125 . . . . . . . . Core Remaining (%) 61 | 100 . 74 . . . 1 . 93 . . 97 . . . . . . 3 . Volleys Fired 174 | . 1 20 24 70 38 . . 1 5 . 1 3 . 6 5 . . . . Largest 2 | . 2 2 2 2 2 . . 1 2 . 1 1 . 1 1 . . . . Hottest 136 | . 70 70 46 136 83 . . 68 60 . 5 5 . 7 7 . . . . Shots Fired 310 | . 2 40 48 140 54 . . 1 10 . 1 3 . 6 5 . . . . Gun 182 | . 2 40 48 66 16 . . . 10 . . . . . . . . . . Cannon 113 | . . . . 74 38 . . 1 . . . . . . . . . . . Launcher . | . . . . . . . . . . . . . . . . . . . . Special 15 | . . . . . . . . . . . 1 3 . 6 5 . . . . Kinetic 151 | . 1 20 48 66 16 . . . . . . . . . . . . . . Thermal 138 | . 1 14 . 74 38 . . 1 10 . . . . . . . . . . Explosive . | . . . . . . . . . . . . . . . . . . . . Electromagnetic 6 | . . 6 . . . . . . . . . . . . . . . . . Robot Hit Streak 12 | . 1 12 10 12 6 . . . 5 . 1 2 . 5 3 . . . . Robot Miss Streak 5 | . 1 2 4 3 5 . . 1 2 . . 1 . 1 2 . . . . Penetration Max . | . . . . . . . . . . . . . . . . . . . . Secondary Targets 4 | . . 2 2 . . . . . . . . . . . . . . . . Max Gunslinging Chain 1 | . . 1 1 . . . . . . . . . . . . . . . . Shots Hit Robots 187 | . 1 28 31 91 18 . . . 7 . 1 2 . 5 3 . . . . Core Hits 72 | . 1 11 15 34 9 . . . 2 . . . . . . . . . . Critical Kills . | . . . . . . . . . . . . . . . . . . . . Critical Parts Destroyed 1 | . . . . 1 . . . . . . . . . . . . . . . Critical Strikes 2 | . . 1 . 1 . . . . . . . . . . . . . . . Burn 1 | . . 1 . . . . . . . . . . . . . . . . . Destroy 1 | . . . . 1 . . . . . . . . . . . . . . . Melee Attacks . | . . . . . . . . . . . . . . . . . . . . Impact . | . . . . . . . . . . . . . . . . . . . . Slashing . | . . . . . . . . . . . . . . . . . . . . Piercing . | . . . . . . . . . . . . . . . . . . . . Sneak Attacks . | . . . . . . . . . . . . . . . . . . . . Combat Hostiles . | . . . . . . . . . . . . . . . . . . . . Follow-up Attacks . | . . . . . . . . . . . . . . . . . . . . Damage Inflicted 3193 | . 8 290 497 1894 440 . . . 64 . . . . . . . . . . Guns 1783 | . 8 290 497 855 69 . . . 64 . . . . . . . . . . Cannons 1410 | . . . . 1039 371 . . . . . . . . . . . . . . Explosions . | . . . . . . . . . . . . . . . . . . . . Melee . | . . . . . . . . . . . . . . . . . . . . Ramming . | . . . . . . . . . . . . . . . . . . . . Kinetic 1541 | . 8 112 497 855 69 . . . . . . . . . . . . . . Thermal 1587 | . . 113 . 1039 371 . . . 64 . . . . . . . . . . Explosive . | . . . . . . . . . . . . . . . . . . . . Electromagnetic 65 | . . 65 . . . . . . . . . . . . . . . . . Impact . | . . . . . . . . . . . . . . . . . . . . Slashing . | . . . . . . . . . . . . . . . . . . . . Piercing . | . . . . . . . . . . . . . . . . . . . . Highest Corruption 27 | . . . . . . . . . . . . . 1 2 2 2 2 27 1 Average Corruption 2 | . . . . . . . . . . . . . 1 1 2 2 2 2 1 Corruption Purged . | . . . . . . . . . . . . . . . . . . . . Corruption Blocked . | . . . . . . . . . . . . . . . . . . . . Effects 6 | . . . . . . . . . . . . . . 2 1 1 1 1 . Message Errors 2 | . . . . . . . . . . . . . . . 1 . . 1 . Matter Fused 3 | . . . . . . . . . . . . . . 1 . 1 1 . . Energy Discharges 1 | . . . . . . . . . . . . . . 1 . . . . . Overload Shots . | . . . . . . . . . . . . . . . . . . . . Overflow Damage 6 | . . . . 1 5 . . . . . . . . . . . . . . Projectiles 6 | . . . . 1 5 . . . . . . . . . . . . . . Explosions . | . . . . . . . . . . . . . . . . . . . . Melee . | . . . . . . . . . . . . . . . . . . . . Knockbacks . | . . . . . . . . . . . . . . . . . . . . Impact . | . . . . . . . . . . . . . . . . . . . . Kinetic . | . . . . . . . . . . . . . . . . . . . . Secondary . | . . . . . . . . . . . . . . . . . . . . Self-Inflicted Damage . | . . . . . . . . . . . . . . . . . . . . Shots . | . . . . . . . . . . . . . . . . . . . . Rammed . | . . . . . . . . . . . . . . . . . . . . Targets Rammed . | . . . . . . . . . . . . . . . . . . . . Kicked . | . . . . . . . . . . . . . . . . . . . . Crushed . | . . . . . . . . . . . . . . . . . . . . Highest Temperature 414 | . 30 218 7 414 162 . . . . . 8 . . . . 2 . . 5 Average Temperature 75 | . 18 79 2 103 50 . . . . . 4 . . . . 2 . . 5 Received Heat Transfer 1217 | . . 123 108 480 39 . . . 27 . 12 . . 18 51 117 . 27 215 Effects 1 | . . . . 1 . . . . . . . . . . . . . . . Short Circuit 1 | . . . . 1 . . . . . . . . . . . . . . . Siege Activations . | . . . . . . . . . . . . . . . . . . . . Robots Corrupted . | . . . . . . . . . . . . . . . . . . . . Combat Hostiles . | . . . . . . . . . . . . . . . . . . . . Parts Fried . | . . . . . . . . . . . . . . . . . . . . Impact Corruptions . | . . . . . . . . . . . . . . . . . . . . Robots Melted . | . . . . . . . . . . . . . . . . . . . . Combat Hostiles . | . . . . . . . . . . . . . . . . . . . . Parts Melted 6 | . . 1 . 2 3 . . . . . . . . . . . . . . Heat Transferred 3190 | . . 407 . 1877 647 . . . 259 . . . . . . . . . . Parts Sabotaged . | . . . . . . . . . . . . . . . . . . . . Parts Stolen . | . . . . . . . . . . . . . . . . . . . . Parts Stripped . | . . . . . . . . . . . . . . . . . . . . Power Chain Reactions . | . . . . . . . . . . . . . . . . . . . . Missiles Intercepted . | . . . . . . . . . . . . . . . . . . . . Alert | -11 -10 -10 -9 -9 -9 -9 -7 -7 -6 -6 -6 -5 -5 -5 -5 -5 -5 -5 -4 ------- Run | Scr Mat Min Mat Sto Gar Rec Fac DSF Fac Was Fac Fac Gar Fac Ext Cet Arc Hub Fac Peak Influence 1094 | . 15 110 299 567 691 411 1094 765 426 132 287 225 187 112 79 42 2 91 103 Initial 1072 | . . 5 . 47 206 310 1072 765 385 117 92 140 157 92 54 27 2 . 17 Average 275 | . 4 78 123 349 431 363 1076 754 398 128 146 191 160 88 49 25 2 68 58 Maximum Alert Level 3 | . . . 1 2 2 2 3 3 2 . 1 1 . . . . . . . Low Security (%) 43 | . 100 100 82 8 . . . . . 100 76 44 100 100 100 100 100 100 100 Level 1 34 | . . . 17 64 47 93 . . 48 . 23 55 . . . . . . . Level 2 17 | . . . . 26 52 6 . . 51 . . . . . . . . . . Level 3 4 | . . . . . . . 100 100 . . . . . . . . . . . Level 4 . | . . . . . . . . . . . . . . . . . . . . Level 5 . | . . . . . . . . . . . . . . . . . . . . High Security . | . . . . . . . . . . . . . . . . . . . . Max Security . | . . . . . . . . . . . . . . . . . . . . Squads Dispatched 16 | . 1 . 2 5 . . . 1 2 . 1 . . . . 1 . 3 . Investigation 2 | . . . . . . . . . . . . . . . . 1 . 1 . Extermination 2 | . . . . . . . . . 1 . 1 . . . . . . . . Reinforcement 9 | . 1 . 2 2 . . . 1 1 . . . . . . . . 2 . Assault 2 | . . . . 2 . . . . . . . . . . . . . . . Garrison 1 | . . . . 1 . . . . . . . . . . . . . . . Intercept . | . . . . . . . . . . . . . . . . . . . . Searches Triggered 1 | . . . . . . . . . 1 . . . . . . . . . . Construction Impeded . | . . . . . . . . . . . . . . . . . . . . Haulers Reinforced . | . . . . . . . . . . . . . . . . . . . . Active Scanning Responses . | . . . . . . . . . . . . . . . . . . . . Cargo Convoy Interrupts . | . . . . . . . . . . . . . . . . . . . . Stealth | -11 -10 -10 -9 -9 -9 -9 -7 -7 -6 -6 -6 -5 -5 -5 -5 -5 -5 -5 -4 --------- Run | Scr Mat Min Mat Sto Gar Rec Fac DSF Fac Was Fac Fac Gar Fac Ext Cet Arc Hub Fac Distress Signals 10 | . . . 1 4 . . . . . . . . . . . 1 . 2 2 Communications Jammed . | . . . . . . . . . . . . . . . . . . . . Distress Signals . | . . . . . . . . . . . . . . . . . . . . Times Spotted 198 | . 1 4 19 40 17 7 . 3 4 6 7 4 16 2 10 11 . 24 23 Peak Tracking Total 23 | . . 2 7 8 6 7 . 3 4 6 4 4 15 1 9 10 . 13 23 Tactical Retreats 21 | . . . 2 4 3 . . . 2 . 2 2 1 1 1 . . 1 2 Traps | -11 -10 -10 -9 -9 -9 -9 -7 -7 -6 -6 -6 -5 -5 -5 -5 -5 -5 -5 -4 ------- Run | Scr Mat Min Mat Sto Gar Rec Fac DSF Fac Was Fac Fac Gar Fac Ext Cet Arc Hub Fac Traps Triggered 10 | . . . . 1 3 . . . 1 . 2 . 2 1 . . . . . Indirectly . | . . . . . . . . . . . . . . . . . . . . Trap Hack Attempts . | . . . . . . . . . . . . . . . . . . . . Triggered . | . . . . . . . . . . . . . . . . . . . . Disarmed . | . . . . . . . . . . . . . . . . . . . . Reprogrammed 6 | . . . . 6 . . . . . . . . . . . . . . . Reused 1 | . . . . 1 . . . . . . . . . . . . . . . Traps Extracted . | . . . . . . . . . . . . . . . . . . . . Installed . | . . . . . . . . . . . . . . . . . . . . Triggered 1 | . . . . 1 . . . . . . . . . . . . . . . Machines | -11 -10 -10 -9 -9 -9 -9 -7 -7 -6 -6 -6 -5 -5 -5 -5 -5 -5 -5 -4 ---------- Run | Scr Mat Min Mat Sto Gar Rec Fac DSF Fac Was Fac Fac Gar Fac Ext Cet Arc Hub Fac Machines Disabled 7 | . . . 1 4 2 . . . . . . . . . . . . . . Max in Single Turn 1 | . . . 1 1 1 . . . . . . . . . . . . . . Garrison Relay 2 | . . . . . 2 . . . . . . . . . . . . . . Network Hub 2 | . . . . . . . . . . . . . . . . . . 2 . Machines Sabotaged . | . . . . . . . . . . . . . . . . . . . . Garrisons Compromised . | . . . . . . . . . . . . . . . . . . . . Overloaded Fab Kills . | . . . . . . . . . . . . . . . . . . . . Hacking | -11 -10 -10 -9 -9 -9 -9 -7 -7 -6 -6 -6 -5 -5 -5 -5 -5 -5 -5 -4 --------- Run | Scr Mat Min Mat Sto Gar Rec Fac DSF Fac Was Fac Fac Gar Fac Ext Cet Arc Hub Fac Machines Accessed 47 | . . . 5 9 . 3 2 . 5 . 6 4 . 1 1 2 1 6 2 Terminals 34 | . . . 3 8 . 2 2 . 3 . 4 . . 1 1 2 . 6 2 Fabricators 2 | . . . . . . . . . . . . 2 . . . . . . . Repair Stations 4 | . . . 1 . . . . . 1 . 1 1 . . . . . . . Recycling Units 4 | . . . 1 . . 1 . . 1 . 1 . . . . . . . . Scanalyzers . | . . . . . . . . . . . . . . . . . . . . Garrison Access 2 | . . . . 1 . . . . . . . 1 . . . . . . . Total Hacks 130 | . . . 13 22 . 7 3 . 9 . 13 6 . 3 1 4 25 15 9 Successful 100 | . . . 5 17 . 7 3 . 7 . 10 5 . 1 1 2 25 9 8 Failed 30 | . . . 8 5 . . . . 2 . 3 1 . 2 . 2 . 6 1 Catastrophic 1 | . . . . . . . . . 1 . . . . . . . . . . Database Lockouts . | . . . . . . . . . . . . . . . . . . . . Manual 59 | . . . 8 9 . 6 1 . 4 . 9 1 . 3 . . . 13 5 Terminals 84 | . . . 10 20 . 5 3 . 5 . 9 . . 3 1 4 . 15 9 Fabricators 2 | . . . . . . . . . . . . 2 . . . . . . . Repair Stations 8 | . . . 1 . . . . . 3 . 2 2 . . . . . . . Recycling Units 7 | . . . 2 . . 2 . . 1 . 2 . . . . . . . . Scanalyzers . | . . . . . . . . . . . . . . . . . . . . Garrison Access 4 | . . . . 2 . . . . . . . 2 . . . . . . . Terminal Hacks 58 | . . . 2 9 . 3 3 . 1 . 2 . . . 1 2 25 4 6 Record 27 | . . . . . . . . . . . . . . . . 2 25 . . Robot Analysis 1 | . . . . . . . . . . . . . . . . . . 1 . Open Door 4 | . . . . 3 . . . . . . . . . . 1 . . . . Open DSF 1 | . . . . . . . 1 . . . . . . . . . . . . Level Access Points 4 | . . . . . . 1 . . . . 1 . . . . . . 1 1 Branch Access Points 6 | . . . . 1 . 1 1 . . . 1 . . . . . . 1 1 Emergency Access Points 2 | . . . 1 . . . . . . . . . . . . . . . 1 Alert Level 1 | . . . . . . . . . . . . . . . . . . . 1 Unreport Threat 1 | . . . . 1 . . . . . . . . . . . . . . . Locate Traps 2 | . . . . 1 . . 1 . . . . . . . . . . . . Reprogram Traps 1 | . . . . 1 . . . . . . . . . . . . . . . Security Status 1 | . . . . 1 . . . . . . . . . . . . . . . Patrol Status 1 | . . . . 1 . . . . . . . . . . . . . . . Recall Investigation 1 | . . . . . . . . . . . . . . . . . . . 1 Hauler Manifests 1 | . . . . . . . . . . . . . . . . . . 1 . Zone Layout 4 | . . . 1 . . 1 . . 1 . . . . . . . . . 1 Fabricator Hacks 1 | . . . . . . . . . . . . 1 . . . . . . . Network Status 1 | . . . . . . . . . . . . 1 . . . . . . . Repair Station Hacks 6 | . . . . . . . . . 3 . 2 1 . . . . . . . Scan Component 3 | . . . . . . . . . 1 . 1 1 . . . . . . . Repair 2 | . . . . . . . . . 1 . 1 . . . . . . . . Refit 1 | . . . . . . . . . 1 . . . . . . . . . . Recycling Unit Hacks 3 | . . . 1 . . . . . 1 . 1 . . . . . . . . Process 1 | . . . . . . . . . 1 . . . . . . . . . . Report Inventory 2 | . . . 1 . . . . . . . 1 . . . . . . . . Scanalyzer . | . . . . . . . . . . . . . . . . . . . . Garrison Access Hacks 3 | . . . . 1 . . . . . . . 2 . . . . . . . Unlock Access 2 | . . . . 1 . . . . . . . 1 . . . . . . . Coupler Status 1 | . . . . . . . . . . . . 1 . . . . . . . Unauthorized Hacks 29 | . . . 2 7 . 4 . . 2 . 5 1 . 1 . . . 5 2 Terminals 24 | . . . 2 6 . 2 . . 2 . 4 . . 1 . . . 5 2 Track 1 | . . . . 1 . . . . . . . . . . . . . . . Botnet 21 | . . . 2 5 . 2 . . 2 . 3 . . 1 . . . 4 2 Operators 2 | . . . . . . . . . . . 1 . . . . . . 1 . Fabricators 1 | . . . . . . . . . . . . 1 . . . . . . . Report 1 | . . . . . . . . . . . . 1 . . . . . . . Repair Stations . | . . . . . . . . . . . . . . . . . . . . Recycling Units 3 | . . . . . . 2 . . . . 1 . . . . . . . . Monitor 1 | . . . . . . 1 . . . . . . . . . . . . . Reject 1 | . . . . . . . . . . . 1 . . . . . . . . Recyclers 1 | . . . . . . 1 . . . . . . . . . . . . . Scanalyzers . | . . . . . . . . . . . . . . . . . . . . Garrison Access 1 | . . . . 1 . . . . . . . . . . . . . . . Reprogram 1 | . . . . 1 . . . . . . . . . . . . . . . Data Cores Recovered 1 | . . . . 1 . . . . . . . . . . . . . . . Used 1 | . . . . 1 . . . . . . . . . . . . . . . Hacking Detections 31 | . . . 5 3 . 2 1 . 3 . 4 3 . 1 1 2 . 5 1 Full Trace Events 2 | . . . . . . . . . . . . . . . . 1 . 1 . Feedback Events . | . . . . . . . . . . . . . . . . . . . . Feedback Blocked . | . . . . . . . . . . . . . . . . . . . . Robot Schematics Acquired . | . . . . . . . . . . . . . . . . . . . . Robots Built . | . . . . . . . . . . . . . . . . . . . . Authchips . | . . . . . . . . . . . . . . . . . . . . Time . | . . . . . . . . . . . . . . . . . . . . Total Robot Build Rating . | . . . . . . . . . . . . . . . . . . . . Part Schematics Acquired . | . . . . . . . . . . . . . . . . . . . . Parts Built . | . . . . . . . . . . . . . . . . . . . . Authchips . | . . . . . . . . . . . . . . . . . . . . Time . | . . . . . . . . . . . . . . . . . . . . Total Part Build Rating . | . . . . . . . . . . . . . . . . . . . . Parts Repaired 2 | . . . . . . . . . 1 . 1 . . . . . . . . Time 194 | . . . . . . . . . 108 . 86 . . . . . . . . Parts Recycled . | . . . . . . . . . . . . . . . . . . . . Recycled Matter 5 | . . . . . . . . . 5 . . . . . . . . . . Retrieved Matter . | . . . . . . . . . . . . . . . . . . . . Retrieved Components . | . . . . . . . . . . . . . . . . . . . . Parts Scanalyzed . | . . . . . . . . . . . . . . . . . . . . Part Schematics Acquired . | . . . . . . . . . . . . . . . . . . . . Parts Damaged . | . . . . . . . . . . . . . . . . . . . . Bothacking | -11 -10 -10 -9 -9 -9 -9 -7 -7 -6 -6 -6 -5 -5 -5 -5 -5 -5 -5 -4 ------------ Run | Scr Mat Min Mat Sto Gar Rec Fac DSF Fac Was Fac Fac Gar Fac Ext Cet Arc Hub Fac Used RIF Installer 2 | . . . . . 1 . . . . . . . 1 . . . . . . Command Fork 1 | . . . . . . . . . . . . . 1 . . . . . . Robots Hacked 9 | . . . . . . . . . . . 1 1 . 4 3 . . . . Non-combat 6 | . . . . . . . . . . . 1 1 . 4 . . . . . Combat 3 | . . . . . . . . . . . . . . . 3 . . . . Robot Hacks Applied 9 | . . . . . . . . . . . 1 1 . 4 3 . . . . find_chute 1 | . . . . . . . . . . . . 1 . . . . . . . map_walls 2 | . . . . . . . . . . . . . . 2 . . . . . drop_inventory 1 | . . . . . . . . . . . . . . 1 . . . . . block_reporting 2 | . . . . . . . . . . . 1 . . 1 . . . . . scatter_targeting 1 | . . . . . . . . . . . . . . . 1 . . . . overwrite_iff 1 | . . . . . . . . . . . . . . . 1 . . . . formatsys_high 1 | . . . . . . . . . . . . . . . 1 . . . . Relay Couplers Released 9 | . . . . . 9 . . . . . . . . . . . . . . Machine Destruction 9 | . . . . . 9 . . . . . . . . . . . . . . Attached 4 | . . . . . . . . . . . 1 2 . . 1 . . . . Fabnet Peak Effective % . | . . . . . . . . . . . . . . . . . . . . Robots Rewired 1 | . . . . . . . . . . . . 1 . . . . . . . Allies Hacked . | . . . . . . . . . . . . . . . . . . . . Hacks Repelled . | . . . . . . . . . . . . . . . . . . . . Allies | -11 -10 -10 -9 -9 -9 -9 -7 -7 -6 -6 -6 -5 -5 -5 -5 -5 -5 -5 -4 -------- Run | Scr Mat Min Mat Sto Gar Rec Fac DSF Fac Was Fac Fac Gar Fac Ext Cet Arc Hub Fac Total Allies 6 | . . . . 2 . . . . . . . 1 . . 3 . . . . Largest Group 2 | . . . . 2 . . . . . . . 1 . . 2 . . . . Highest-Rated Group 85 | . . . . 62 . . . . . . . 30 . . 85 . . . . Highest-Rated Ally 85 | . . . . 31 . . . . . . . 30 . . 85 . . . . Total Orders 1 | . . . . . . . . . . . . 1 . . . . . . . ROAM 1 | . . . . . . . . . . . . 1 . . . . . . . Ally Attacks 16 | . . . . 14 . . . . . . . 2 . . . . . . . Total Damage 333 | . . . . 270 . . . . . . . 63 . . . . . . . Kills 4 | . . . . 4 . . . . . . . . . . . . . . . Allies Corrupted . | . . . . . . . . . . . . . . . . . . . . Allies Melted . | . . . . . . . . . . . . . . . . . . . . Intel | -11 -10 -10 -9 -9 -9 -9 -7 -7 -6 -6 -6 -5 -5 -5 -5 -5 -5 -5 -4 ------- Run | Scr Mat Min Mat Sto Gar Rec Fac DSF Fac Was Fac Fac Gar Fac Ext Cet Arc Hub Fac Robot Analysis Total 1 | . . . . . . . . . . . . . . . . . . 1 . Derelict Logs Recovered 1 | . . 1 . . . . . . . . . . . . . . . . . Drone Launches . | . . . . . . . . . . . . . . . . . . . . Drone Recoveries . | . . . . . . . . . . . . . . . . . . . . Exploration | -11 -10 -10 -9 -9 -9 -9 -7 -7 -6 -6 -6 -5 -5 -5 -5 -5 -5 -5 -4 ------------- Run | Scr Mat Min Mat Sto Gar Rec Fac DSF Fac Was Fac Fac Gar Fac Ext Cet Arc Hub Fac Turns Passed 4534 | . 67 405 531 1263 491 78 150 38 385 57 267 201 43 133 88 72 27 129 109 Spaces Moved 5733 | 1 53 278 321 577 371 228 241 123 700 145 498 537 107 415 248 205 79 323 283 Core 90 | . . . . . 1 . . . . . . . . . . . . . 89 Treads 286 | . . . 99 187 . . . . . . . . . . . . . . . Legs 1188 | 1 53 278 222 390 244 . . . . . . . . . . . . . . Wheels . | . . . . . . . . . . . . . . . . . . . . Hover . | . . . . . . . . . . . . . . . . . . . . Flight 4169 | . . . . . 126 228 241 123 700 145 498 537 107 415 248 205 79 323 194 Fastest Speed 26 | 120 120 120 120 120 34 34 26 26 28 28 26 27 27 27 31 31 34 30 30 Average Speed 55 | 120 120 120 132 134 93 34 28 26 28 28 26 27 27 28 32 32 34 35 36 Slowest Speed 260 | 120 120 120 160 260 200 34 34 28 32 28 28 27 27 31 34 34 34 40 50 Overloaded Moves . | . . . . . . . . . . . . . . . . . . . . Propulsion Burnouts . | . . . . . . . . . . . . . . . . . . . . Robots Hopped 43 | . . . . . . 6 1 1 . . 4 2 . 5 6 4 1 11 2 Cave-ins Triggered . | . . . . . . . . . . . . . . . . . . . . Exploration Rate (%) 39 | 2 14 40 33 67 48 58 7 89 10 84 14 15 37 13 47 70 78 40 14 Regions Visited 19 Branch Regions 7 Pre-discovered Areas 1 | . . 1 . . . . . . . . . . . . . . . . . Known Exits Taken 11 | . . . 1 1 . 1 1 . . . 1 1 . 1 1 1 1 1 . Unknown Exits Taken 3 | 1 1 1 . . . . . . . . . . . . . . . . . Scrap Searched . | . . . . . . . . . . . . . . . . . . . . Spaces Dug . | . . . . . . . . . . . . . . . . . . . . Terrain Destroyed 4 | . . . . 4 . . . . . . . . . . . . . . . Melee . | . . . . . . . . . . . . . . . . . . . . Projectile 4 | . . . . 4 . . . . . . . . . . . . . . . AOE . | . . . . . . . . . . . . . . . . . . . . Terrain Rammed . | . . . . . . . . . . . . . . . . . . . . Walls Destroyed . | . . . . . . . . . . . . . . . . . . . . Machines Disabled . | . . . . . . . . . . . . . . . . . . . . Actions | -11 -10 -10 -9 -9 -9 -9 -7 -7 -6 -6 -6 -5 -5 -5 -5 -5 -5 -5 -4 --------- Run | Scr Mat Min Mat Sto Gar Rec Fac DSF Fac Was Fac Fac Gar Fac Ext Cet Arc Hub Fac Total 6746 | . 54 313 381 934 463 221 320 124 877 160 626 589 120 423 247 204 77 325 288 Wait 715 | . . 10 26 244 23 . 77 . 165 15 95 47 . . . . . 8 5 Move 5635 | . 52 277 320 577 370 216 238 120 700 144 490 533 106 404 236 197 76 300 279 Hop 39 | . . . . . . 5 1 1 . . 3 2 . 5 5 3 1 11 2 Pick Up 23 | . 1 1 2 7 5 . . 1 1 . 2 1 . . . . . 1 1 Fast Attach 37 | . . 1 2 11 3 . 3 1 3 1 7 . . 2 . . . 3 . Attach 11 | . . . 2 1 1 . 1 . . . . 2 . . . 4 . . . Detach 6 | . . . 1 4 . . . . . . . . . . . . . 1 . Swap 21 | . . 3 1 6 2 . . . 1 . 2 1 . 3 1 . . 1 . Drop 38 | . . 1 3 14 6 . . . 2 . 8 . . 3 . . . . 1 Fire 174 | . 1 20 24 70 38 . . 1 5 . 1 3 . 6 5 . . . . Melee . | . . . . . . . . . . . . . . . . . . . . Ram . | . . . . . . . . . . . . . . . . . . . . Kick . | . . . . . . . . . . . . . . . . . . . . Crush . | . . . . . . . . . . . . . . . . . . . . Escape Stasis 47 | . . . . . 15 . . . . . 18 . 14 . . . . . . Rewire . | . . . . . . . . . . . . . . . . . . . . Trap . | . . . . . . . . . . . . . . . . . . . . Miscellaneous . | . . . . . . . . . . . . . . . . . . . . Route ------- -11/Scrapyard -10/Materials -10/Mines -9/Materials -9/Storage (discovered 3 exits: [*Mat] / Rec / Gar) -9/Garrison (discovered 2 exits: *Rec x2) -9/Recycling -7/Factory (discovered 5 exits: *Fac x2 / Low x2 / DSF) -7/DSF -6/Factory -6/Waste -6/Factory (discovered 6 exits: *Fac x4 / Low x2) -5/Factory -5/Garrison -5/Factory -5/Extension (discovered 3 exits: *Fac x2 / *Cet) -5/Cetus (discovered 2 exits: *Fac / *Arc) -5/Archives (discovered 2 exits: *Hub x2) -5/Hub_04(d) (discovered 4 exits: *Fac x4) -4/Factory (discovered 6 exits: *Res x4 / Upp x2) History --------- Turn | Location | Event 1 | -11/Scrapyard | Discovered new exit (range 0) 1 | -11/Scrapyard | Entered Materials 62 | -10/Materials | Discovered new exit (range 6) 68 | -10/Materials | Entered Mines 174 | -10/Mines | Found a damaged Exp. Sensor Array with a note attached 177 | -10/Mines | Found Prototype Device 177 | -10/Mines | Identified Exp. Sensor Array 317 | -10/Mines | Build established: Mutant 335 | -10/Mines | Learned location of Storage (-9) 461 | -10/Mines | Discovered new exit (range 11) 473 | -10/Mines | Entered Materials 473 | -9/Materials | Evolved 2 slots: Propulsion x1, Utility x1 474 | -9/Materials | Identified exit to Storage 1004 | -9/Materials | Entered Storage 1114 | -9/Storage | Core integrity fell below 50% 1168 | -9/Storage | Garrison activated, responded to threat 1227 | -9/Storage | Identified exit to Recycling 1353 | -9/Storage | Met a pair of Derelict thieves 1846 | -9/Storage | Discovered new exit (range 6) 2267 | -9/Storage | Identified exit to Garrison 2267 | -9/Storage | Entered Garrison 2308 | -9/Garrison | Garrison Relay disabled 2346 | -9/Garrison | Triggered checkpoint 2376 | -9/Garrison | Triggered checkpoint 2448 | -9/Garrison | Triggered checkpoint 2474 | -9/Garrison | Garrison Relay disabled 2570 | -9/Garrison | Discovered exit to Recycling (range 8) 2674 | -9/Garrison | Core integrity fell below 20% 2744 | -9/Garrison | Triggered checkpoint 2753 | -9/Garrison | Discovered exit to Recycling (range 8) 2757 | -9/Garrison | Installed Relay Interface Framework 2758 | -9/Garrison | Entered Recycling 2774 | -9/Recycling | Identified exit to Factory 2788 | -9/Recycling | Spotter reported a threat 2797 | -9/Recycling | Spotter reported a threat 2804 | -9/Recycling | Spotter reported a threat 2804 | -9/Recycling | Spotter reported a threat 2811 | -9/Recycling | Spotter reported a threat 2821 | -9/Recycling | Spotter reported a threat 2833 | -9/Recycling | Spotter reported a threat 2836 | -9/Recycling | Entered Factory 2836 | -7/Factory | Evolved 4 slots: Propulsion x2, Utility x2 2937 | -7/Factory | Discovered new exit (range 12) 2964 | -7/Factory | Discovered new exit (range 6) 2970 | -7/Factory | Identified exit to Lower Caves 2986 | -7/Factory | Identified exit to DSF 2986 | -7/Factory | Entered DSF 3011 | -7/DSF | Additional patrols routed to DSF 3018 | -7/DSF | Discovered new exit (range 16) 3024 | -7/DSF | Entered Factory 3024 | -6/Factory | Evolved 2 slots: Propulsion x1, Utility x1 3045 | -6/Factory | Lost 3 parts (1p1n1w) 3140 | -6/Factory | Repaired Exp. Sensor Array 3148 | -6/Factory | Discovered new exit (range 13) 3330 | -6/Factory | Build established: Hacker-Sprinter 3374 | -6/Factory | Search patrols dispatched 3381 | -6/Factory | Identified exit to Factory 3409 | -6/Factory | Manually triggered Chute Trap 3409 | -6/Factory | Sucked down chute 3409 | -6/Factory | Entered Waste 3411 | -6/Waste | Spotted C-40 Crusher 3418 | -6/Waste | Spotted C-40 Crusher 3419 | -6/Waste | Spotted C-40 Crusher 3421 | -6/Waste | Spotted C-40 Crusher 3422 | -6/Waste | Spotted C-40 Crusher 3429 | -6/Waste | Spotted C-40 Crusher 3460 | -6/Waste | Discovered new exit (range 15) 3466 | -6/Waste | Identified exit to Factory 3466 | -6/Waste | Entered Factory 3611 | -6/Factory | Repaired Broken Field Propulsion Array 3659 | -6/Factory | Identified exit to Lower Caves 3733 | -6/Factory | Entered another Factory area 3733 | -5/Factory | Evolved 2 slots: Utility x2 3934 | -5/Factory | Identified exit to Garrison 3934 | -5/Factory | Entered Garrison 3946 | -5/Garrison | Triggered checkpoint 3973 | -5/Garrison | Discovered new exit (range 8) 3974 | -5/Garrison | Identified exit to Factory 3976 | -5/Garrison | Expanded RIF knowledge: Command Fork 3977 | -5/Garrison | Entered Factory 4105 | -5/Factory | Discovered new exit (range 13) 4109 | -5/Factory | Identified exit to Extension 4110 | -5/Factory | Entered Extension 4142 | -5/Extension | Spotted B-75 Beast 4155 | -5/Extension | Spotted B-75 Beast 4164 | -5/Extension | Discovered new exit (range 3) 4165 | -5/Extension | Identified exit to Factory 4193 | -5/Extension | Discovered exit to Factory (range 15) 4193 | -5/Extension | Discovered new exit (range 15) 4198 | -5/Extension | Identified exit to Cetus 4198 | -5/Extension | Entered Cetus 4204 | -5/Cetus | Spotted Cetus Guard 4204 | -5/Cetus | Spotted Cetus Guard 4205 | -5/Cetus | Spotted Cetus Guard 4211 | -5/Cetus | Discovered exit to Factory (range 16) 4220 | -5/Cetus | Spotted Cetus Guard 4246 | -5/Cetus | Cetus Manufacturing Module disabled 4264 | -5/Cetus | Discovered new exit (range 16) 4269 | -5/Cetus | Identified exit to Archives 4270 | -5/Cetus | Entered Archives 4279 | -5/Archives | Met Zhirov 4284 | -5/Archives | Read partially decrypted archive contents 4285 | -5/Archives | Reinforcements dispatched to Archives 4287 | -5/Archives | Unable to access archive contents 4289 | -5/Archives | Discovered new exit (range 16) 4291 | -5/Archives | Discovered new exit (range 13) 4297 | -5/Archives | Identified exit to Hub_04(d) 4297 | -5/Archives | Entered Hub_04(d) 4298 | -5/Hub_04(d) | Lost 7 parts (5n2w) 4343 | -5/Hub_04(d) | Disrupted transfer network 4391 | -5/Hub_04(d) | Network Hub disabled 4418 | -5/Hub_04(d) | Spotted Lightning 4418 | -5/Hub_04(d) | Network Hub disabled 4418 | -5/Hub_04(d) | Spotted Lightning 4418 | -5/Hub_04(d) | Spotted Lightning 4419 | -5/Hub_04(d) | Core integrity fell below 50% 4423 | -5/Hub_04(d) | System corruption reached 10% 4425 | -5/Hub_04(d) | Core integrity fell below 20% 4426 | -5/Hub_04(d) | Entered Factory 4426 | -4/Factory | Evolved 2 slots: Power x1, Utility x1 4457 | -4/Factory | Lost 9 parts (5n4u) 4465 | -4/Factory | Identified exit to Upper Caves 4465 | -4/Factory | Identified exit to Research 4522 | -4/Factory | Lost 3 parts (1n2u) 4522 | -4/Factory | Core integrity fell below 50% 4531 | -4/Factory | Core integrity fell below 20% 4535 | -4/Factory | Destroyed by H-71 Marshal with Heavy Mass Driver Last Messages --------------- >>Alert(Check) Current Alert Level: Low Security 04489_ Door malfunctions. 04491_ Critical hit (Burn: +50). 04491_ Imp. Surge Thruster destroyed. 04491_ Adv. Hacking Suite destroyed. 04491_ Relay Coupler [Behemoth] destroyed. 04494_ Critical hit (Burn: +37). 04495_ P-70 Sage resets G-67 Veteran, system corruption cleaned. 04504_ Penetrated by Slug. 04517_ Slug penetrates Wall. 04517_ Penetrated by Slug. 04517_ Slug penetrates Wall. 04523_ Penetrated by Slug. 04529_ Critical hit (Burn: +37). 04531_ Slug penetrates T-07 Excavator. 04531_ T-07 Excavator destroyed. 04532_ R-10 Processor collects Imp. Terrain Scanner. 04533_ Knocked back. 04534_ Acquired 4 matter. Map ----- +----------------------------------------------------+ | ?????????????????????????????????????????????????? | | ?????????????????????????????????????????????????? | | ?????????????????????????????????????????????????? | | ?????????????????????????????????????????????????? | | ?????????????????????????????????????????????????? | | ?????????????????????????????????????????????????? | | ?????????????????????????????????????????????????? | | ?????????????????????????????????????????????????? | | ?????????????????????????????????????????????????? | | ?????????????????????????????????????????????????? | | ??????????????????????????? ?????????????????????? | | ??????????????????????????? #???????????????????? | | ??????????????????????????? #???????????????????? | | ??????????????????????????? #???????????????????? | | ?????????????????????????? #???????????????????? | | ?????????????????????????? #???????????????????? | | ?????????????????????????? #???????????????????? | | ?????????????????????????? #???????????????????? | | ?????????????????????????? #?########??????????? | | ?????????????##??????????? ? ??????????? | | ##############;###########/### ??????????? | | k s R ?????????? | | sg !% ?????????? | | s % * H< ????????? | | R s ????????? | | A s @ ????????? | | #####+#######g ########;### ????????? | | # #??????? ????????????????????? | | # #???????? #???????????????????? | | """" """" # #???????? #???????????????????? | | """" """" # #????????? #???????????????????? | | """" """" # #????????? #???????????????????? | | """" """" # #??????????#???????????????????? | | ?? ??# #??????????????????????????????? | | ????"" ""???# #??????????????????????????????? | | ?????" ""???# #??????????????????????????????? | | ?????" "????# #??????????????????????????????? | | ?????" "????# +??????????????????????????????? | | ?????? ????? ???????????????????????????????? | | ??????##?????????????????????????????????????????? | | ?????????????????????????????????????????????????? | | ?????????????????????????????????????????????????? | | ?????????????????????????????????????????????????? | | ?????????????????????????????????????????????????? | | ?????????????????????????????????????????????????? | | ?????????????????????????????????????????????????? | | ?????????????????????????????????????????????????? | | ?????????????????????????????????????????????????? | | ?????????????????????????????????????????????????? | | ?????????????????????????????????????????????????? | +----------------------------------------------------+ Best States ------------- Heat Dissipation 50 Energy Generation 17 Energy Capacity 280 Matter Stores 300 Matter Capacity 300 Sight Range 16 Robot Scan Range 20 Terrain Scan Density 10 Additional Mass Support 9 Armor Coverage 150 Power Shielding 33 Evasion (%) 64 Targeting Accuracy 5 Recoil Reduction 3 Offensive Hacking 24 Relay Coupler Types 3 Relay Coupler Value 72 Authchip Count 1 Item Schematics ----------------- None Robot Schematics ------------------ None Fabricated ------------ Nothing Alien Tech Used ----------------- None Achievements -------------- None Challenges ------------ None Game ------ Seed PhaseMinesnifferMatter Manual? 0 Play Time 01:11:31 Cumulative 116.0 hours Start 2022.04.15 @ 14:50:51 End 2022.04.15 @ 16:07:02 Sessions 1 Manual Loads 0 Difficulty Rogue Special Mode None Game No. 211 Rogue 208 Adventurer 1 Explorer 2 Win Type - Total 4 Types 4/0/0/0/0/0/0/0/0 Lore% 61 Gallery% 59 Achievement% 53 Wizard Run 0 Options --------- ASCII 0 Keyboard 1 Movement Numpad Keybinds 0 Fullscreen 2 Font 18/SmallcapsGlow Map View 76x50 Tactical HUD 1 Map Filters NONE Filters NONE Steam 1 RUN: 51725c1a-eb5b-4a87-8b86-c77cc9a2b324